Cogmind - Beta 12 X4 @@@ ROGUE MODE // 2022.12.27 @ 18:46:57 Player: Jezoensis Result: Escaped! Performance ------------- Evolutions (9) 4500 Regions Visited (19) 3800 Robots Destroyed (134) 670 Value Destroyed (5160) 5160 Prototype IDs (44) 880 Alien Tech Used (0) 0 Bonus (6641) 6641 TOTAL SCORE: 21651 Bonus ------- High Alert Combat Kills 61 Follower Combat Kills 1251 Entered DSFs 1500 Network Hubs Disabled 600 Aligned with FarCom 300 Built Enhanced Grunts 300 Met R17 at Cetus 500 Win 3000 Friendly Fire -871 Cogmind --------- Core Integrity 1556/1600 Matter 248/300 Energy 574/590 System Corruption 2% Temperature Warm (164) Movement Walking (106) Location To Epsilon Eridani Parts ------- > --- POWER (2) -------- Particle Reactor Quantum Reactor > --- PROPULSION (6) --- Biometal Leg Biometal Leg Biometal Leg Biometal Leg Biometal Leg Potential Leg > --- UTILITY (14) ----- Advanced Coolant Injector Advanced Coolant Injector Advanced Coolant Injector High-capacity Storage Unit Enhanced Optical Array Advanced Targeting Computer Advanced Targeting Computer Core Analyzer Improved Weapon Cycler Layered Heavy Armor Plating Layered Heavy Armor Plating Improved Focal Shield > --- WEAPON (3) ------- Enhanced Nova Cannon Enhanced Nova Cannon Enhanced Nova Cannon > --- INVENTORY (20) --- Quantum Reactor Quantum Reactor Light Quantum Reactor Advanced Myomer Leg Advanced Myomer Leg Centrium Leg Centrium Leg Matter Compressor (250) Structural Scanner Advanced Transmission Jammer Improved Cloaking Device Nova Cannon Nova Cannon Nova Cannon Hardcell Cannon Hardcell Cannon Compact Mass Driver Hellfire Missile Launcher Hellfire Missile Launcher Peak State ------------ > --- POWER ------------ Particle Reactor Quantum Reactor > --- PROPULSION ------- Biometal Leg Biometal Leg Biometal Leg Biometal Leg Biometal Leg Potential Leg > --- UTILITY ---------- Advanced Coolant Injector Advanced Coolant Injector High-capacity Storage Unit Enhanced Optical Array Advanced Targeting Computer Advanced Targeting Computer Core Analyzer Improved Weapon Cycler Advanced Transmission Jammer Layered Heavy Armor Plating Layered Heavy Armor Plating Improved Focal Shield > --- WEAPON ----------- Enhanced Nova Cannon Enhanced Nova Cannon Enhanced Nova Cannon > --- INVENTORY -------- Quantum Reactor Quantum Reactor Light Quantum Reactor Advanced Myomer Leg Advanced Myomer Leg Centrium Leg Centrium Leg Advanced Coolant Injector Matter Compressor Structural Scanner Improved Cloaking Device Nova Cannon Nova Cannon Nova Cannon Hardcell Cannon Hardcell Cannon Compact Mass Driver Hellfire Missile Launcher Hellfire Missile Launcher [Rating: 181] Favorites ----------- Power Particle Reactor Engine Improved Ion Engine Power Core Neutrino Core Reactor Particle Reactor Propulsion Potential Leg Leg Potential Leg Wheel Wheel Utility Advanced Targeting Computer Device Structural Scanner Storage High-capacity Storage Unit Processor Advanced Targeting Computer Hackware Improved Hacking Suite Protection Centrium Medium Armor Plating Weapon Enhanced Nova Cannon Energy Gun Heavy EM Shotgun Energy Cannon Enhanced Nova Cannon Ballistic Gun Assault Rifle Ballistic Cannon Tri-rail Accelerator Launcher Advanced EMP Blaster Special Weapon Mining Laser Slashing Weapon Great Axe Build | -11 -10 -10 -10 -9 -8 -7 -7 -6 -6 -6 -6 -6 -5 -5 -4 -3 -3 -2 -1 ------- Run | Scr Mat Min Exi Min Mat Fac DSF Fac Ext Cet Arc Hub Fac DSF Fac Res DSF Res Acc Slots Evolved 18 | . . . . . 4 2 . 2 . . . . 2 . 2 2 . 2 2 Power 1 | . . . . . . . . . . . . . . . 1 . . . . Propulsion 4 | . . . . . 1 . . 1 . . . . 1 . . 1 . . . Utility 12 | . . . . . 3 1 . 1 . . . . 1 . 1 1 . 2 2 Weapon 1 | . . . . . . 1 . . . . . . . . . . . . . Parts Attached 273 | 8 5 . 1 3 38 6 20 14 25 4 3 12 6 18 22 3 11 56 18 Power 19 | 1 1 . . 1 1 . 2 1 2 . 1 . . 2 2 . 2 3 . Engine 9 | 1 1 . . 1 1 . 2 1 1 . . . . . . . . 1 . Core 2 | . . . . . . . . . 1 . 1 . . . . . . . . Reactor 8 | . . . . . . . . . . . . . . 2 2 . 2 2 . Propulsion 43 | 3 2 . . . 5 1 3 4 3 . . 1 1 1 6 1 . 9 3 Treads . | . . . . . . . . . . . . . . . . . . . . Leg 36 | . . . . . 3 1 3 4 3 . . 1 1 1 6 1 . 9 3 Wheel 7 | 3 2 . . . 2 . . . . . . . . . . . . . . Hover . | . . . . . . . . . . . . . . . . . . . . Flight . | . . . . . . . . . . . . . . . . . . . . Utility 132 | 2 1 . 1 1 15 4 4 7 15 3 . 8 3 8 11 2 5 29 13 Device 71 | 1 . . . 1 10 1 1 2 7 . . 2 1 4 7 1 4 19 10 Storage 6 | 1 1 . 1 . . 1 . . . . . . . 1 . . . 1 . Processor 10 | . . . . . 1 1 1 1 1 . . . 1 . . 1 . 2 1 Hackware 8 | . . . . . 1 . . . 1 . . 2 . . . . . 3 1 Protection 37 | . . . . . 3 1 2 4 6 3 . 4 1 3 4 . 1 4 1 Artifact . | . . . . . . . . . . . . . . . . . . . . Weapon 79 | 2 1 . . 1 17 1 11 2 5 1 2 3 2 7 3 . 4 15 2 Energy Gun 9 | . . . . . 6 . 3 . . . . . . . . . . . . Energy Cannon 19 | . . . . . 1 . 4 1 . . . . . 3 . . 2 6 2 Ballistic Gun 10 | 2 1 . . 1 5 . 1 . . . . . . . . . . . . Ballistic Cannon 21 | . . . . . 1 . 1 . 3 . 1 1 1 3 2 . 2 6 . Launcher 8 | . . . . . 2 . . . 2 . . 1 . . . . . 3 . Special Weapon 2 | . . . . . 2 . . . . . . . . . . . . . . Impact Weapon . | . . . . . . . . . . . . . . . . . . . . Slashing Weapon 10 | . . . . . . 1 2 1 . 1 1 1 1 1 1 . . . . Piercing Weapon . | . . . . . . . . . . . . . . . . . . . . Special Melee Weapon . | . . . . . . . . . . . . . . . . . . . . Unidentified Prototypes 14 | . . . . . 2 . 1 1 . 1 . . 2 . 1 . . 5 1 Parts Lost 13 | . . . . . 2 . 3 . 1 . . 2 1 . . . . 4 . Power 2 | . . . . . . . . . . . . . . . . . . 2 . Propulsion 3 | . . . . . 1 . 1 . . . . . . . . . . 1 . Utility 2 | . . . . . . . . . 1 . . . . . . . . 1 . Weapon 6 | . . . . . 1 . 2 . . . . 2 1 . . . . . . Highest Loss Streak 3 | . . . . . 2 . 3 . 1 . . 2 1 . . . . 3 . To Critical Strikes . | . . . . . . . . . . . . . . . . . . . . Average Slot Usage (%) 96 | . 100 100 100 100 98 100 95 92 92 93 93 92 92 95 95 100 100 98 95 Engine 3 | . 14 14 14 14 9 7 7 6 2 . . . . . . . . . . Core 1 | . . . . . . . . . 3 6 6 6 5 2 . . . . . Reactor 2 | . . . . . . . . . . . . . . 2 7 9 9 7 8 Leg 21 | . . . . . 10 23 22 26 25 26 26 26 29 29 25 28 28 25 24 Wheel 4 | . 28 28 28 28 16 . . . . . . . . . . . . . . Device 9 | . 14 14 14 14 13 7 5 6 2 . . . 5 4 11 14 10 12 15 Storage 6 | . 14 14 14 14 9 7 7 6 6 6 6 6 5 5 5 4 4 4 4 Processor 13 | . . . . . 6 14 14 16 15 13 13 13 17 17 15 19 19 17 17 Hackware 8 | . . . . . 8 7 7 6 12 13 13 19 5 5 5 4 4 10 10 Protection 6 | . . . . . 6 7 9 9 8 13 13 5 10 11 8 4 7 5 4 Energy Gun 1 | . . . . . 5 7 5 . . . . . . . . . . . . Energy Cannon 2 | . . . . . . . 5 . . . . . . 3 . . 3 6 12 Ballistic Gun 4 | . 28 28 28 28 11 7 2 . . . . . . . . . . . . Ballistic Cannon 4 | . . . . . . . 1 6 10 6 8 7 5 8 10 9 9 4 . Slashing Weapon 1 | . . . . . . 7 2 5 2 2 3 4 4 . 4 4 . . . Naked Turns . | . . . . . . . . . . . . . . . . . . . . Heaviest Build 163 | 14 49 49 49 37 46 62 74 84 86 85 86 93 83 101 112 106 124 138 163 Greatest Support 172 | 26 26 26 26 26 58 66 80 96 101 101 101 101 116 116 116 132 132 170 172 Greatest Overweight (x) 1 | . 1 1 1 1 1 . 1 . . . . . . . . . . . . Average Overweight (x) . | . . 1 1 1 . . . . . . . . . . . . . . . Largest Inventory Capacity 20 | 8 20 20 20 15 15 20 20 20 20 20 20 20 20 20 20 20 20 20 20 Average Capacity 18 | 5 12 20 16 15 15 19 20 20 20 20 20 20 20 20 20 20 20 20 20 Most Carried 20 | 7 10 12 15 15 15 20 20 20 20 20 20 20 19 20 20 20 20 20 20 Average Carried 18 | 4 8 10 13 15 14 17 19 19 19 19 19 19 17 19 19 18 19 19 19 Final Capacity 20 | 8 20 20 15 15 15 20 20 20 20 20 20 20 20 20 20 20 20 20 20 Final Carried 20 | 7 10 12 15 15 15 20 20 20 20 20 20 16 19 20 20 20 20 20 19 Class Distribution -------------------- 15% | Hacker-Mutant 13% | Assassin 12% | Mutant 10% | Scavenger-Skirmisher 9% | Hacker-Skirmisher 7% | Scavenger-Assassin 6% | Hacker-Gunner 4% | Commander-Skirmisher 3% | Commander-Mutant 3% | Scavenger-Mutant Dominant Class ---------------- Mutant | -10/Materials Mutant | -10/Mines Mutant | -10/Exiles Mutant | -9/Mines Scavenger-Skirmisher | -8/Materials Assassin | -7/Factory Scavenger-Skirmisher | -7/DSF Assassin | -6/Factory Hacker-Skirmisher | -6/Extension Commander-Mutant | -6/Cetus Commander-Mutant | -6/Archives Hacker-Mutant | -6/Hub_04(d) Scavenger-Assassin | -5/Factory Scavenger-Tank | -5/DSF Scavenger-Assassin | -4/Factory Infiltrator-Assassin | -3/Research Scavenger-Gunner | -3/DSF Hacker-Mutant | -2/Research Hacker-Mutant | -1/Access Resources | -11 -10 -10 -10 -9 -8 -7 -7 -6 -6 -6 -6 -6 -5 -5 -4 -3 -3 -2 -1 ----------- Run | Scr Mat Min Exi Min Mat Fac DSF Fac Ext Cet Arc Hub Fac DSF Fac Res DSF Res Acc Matter Collected 4909 | 270 . 47 . 357 657 60 177 190 590 176 86 30 186 437 153 118 225 935 215 Remotely . | . . . . . . . . . . . . . . . . . . . . Salvage Created 6483 | 72 . . . 136 813 75 506 312 775 192 152 533 27 116 62 118 273 1146 1175 Parts 338 | 7 . . . 13 60 10 24 9 42 11 9 18 3 3 2 2 5 59 61 Haulers Intercepted 8 | . . . . . 2 1 . 1 . . . . . . . 1 2 . 1 Recyclers Shooed 9 | 1 . . . . 1 . . 2 1 . . . . . . . . 4 . Parts Field Recycled . | . . . . . . . . . . . . . . . . . . . . Retrieved Matter . | . . . . . . . . . . . . . . . . . . . . Parts Self-Destructed . | . . . . . . . . . . . . . . . . . . . . Prevented . | . . . . . . . . . . . . . . . . . . . . Kills | -11 -10 -10 -10 -9 -8 -7 -7 -6 -6 -6 -6 -6 -5 -5 -4 -3 -3 -2 -1 ------- Run | Scr Mat Min Exi Min Mat Fac DSF Fac Ext Cet Arc Hub Fac DSF Fac Res DSF Res Acc Combat Hostiles Destroyed 78 | . . . . 5 18 . 9 1 13 3 1 3 . 4 1 . 1 9 10 Melee 1 | . . . . . . . . . . . . 1 . . . . . . . Guns 20 | . . . . 5 12 . 3 . . . . . . . . . . . . Cannons 34 | . . . . . . . 2 1 10 1 1 . . 4 1 . 1 5 8 AOE 16 | . . . . . 6 . 2 . 3 . . 2 . . . . . 3 . Classes Destroyed 19 | 1 . . . 3 7 1 2 1 2 . . 1 . . . . . 1 . Worker 12 | . . . . . 1 . . 1 1 . . 4 . . . . . 4 1 Builder 7 | . . . . . . 2 . . . . . . 1 . 1 . . 2 1 Tunneler 4 | 3 . . . . . . . . . . . . . . . . . . 1 Hauler 8 | . . . . . 2 1 . 1 . . . . . . . 1 2 . 1 Recycler 9 | . . . . . . . . 2 2 . . 1 . . . . . 3 1 Mechanic 1 | . . . . . 1 . . . . . . . . . . . . . . Operator 6 | . . . . . 1 . . . . . 3 1 . . . . . 1 . Watcher 6 | . . . . . 1 . . . 1 . . 1 . . . . . 3 . Swarmer 19 | . . . . 3 8 . . . 3 . . 1 . . . . . 4 . Grunt 16 | . . . . 1 4 . 5 . 2 . . 1 . . . . . 1 2 Brawler 2 | . . . . 1 . . . . 1 . . . . . . . . . . Duelist 1 | . . . . . 1 . . . . . . . . . . . . . . Protector 1 | . . . . . . . . . . . . 1 . . . . . . . Sentry 13 | . . . . . 5 . . 1 5 . 1 . . . 1 . . . . Specialist 5 | . . . . . . . 3 . . . . . . 1 . . 1 . . Hunter 4 | . . . . . . . . . . . . . . 2 . . . . 2 Programmer 7 | . . . . . . . . . . . . . . . . . . 3 4 Heavy 2 | . . . . . . . 1 . . . . . . 1 . . . . . Behemoth 5 | . . . . . . . . . 2 . . . . . . . . 1 2 Cetus Guard 3 | . . . . . . . . . . 3 . . . . . . . . . Enhanced Grunt 2 | . . . . . . . . . . . . 2 . . . . . . . Guerrilla 1 | . . . . . . . . . 1 . . . . . . . . . . Best Kill Streak 9 | 2 . . . 3 7 1 5 3 4 2 2 9 1 2 1 1 2 7 6 Combat Bots Only 7 | . . . . 3 7 . 5 1 3 2 1 2 . 2 1 . 1 3 4 Max Kills in Single Turn 10 | 1 . . . 1 3 1 2 2 3 1 1 10 1 1 1 1 1 4 2 Gunslinging 1 | . . . . . 1 . . . . . . . . . . . . . . Exploded 3 | . . . . . 3 . 2 . 3 . . 2 . . . . . 2 . Melee 1 | . . . . . . . . . . . . 1 . . . . . . . Uniques/NPCs Destroyed . | . . . . . . . . . . . . . . . . . . . . Combat | -11 -10 -10 -10 -9 -8 -7 -7 -6 -6 -6 -6 -6 -5 -5 -4 -3 -3 -2 -1 -------- Run | Scr Mat Min Exi Min Mat Fac DSF Fac Ext Cet Arc Hub Fac DSF Fac Res DSF Res Acc Damage Taken 7015 | . 11 . . 200 601 . 811 126 219 282 45 764 . 847 117 86 53 1884 969 Core 833 | . 11 . . 39 73 . 130 11 6 28 45 102 . 101 . . 7 236 44 Absorbed by Shields 148 | . . . . . . . . . 46 102 . . . . . . . . . Redirected to Shielding 11 | . . . . . . . . . . . . . . 11 . . . . . Core Remaining (%) 89 | 100 . . . 80 86 . 81 . . . . 77 . 89 100 . 99 83 97 Volleys Fired 283 | 9 . . . 17 56 . 20 8 31 12 4 5 . 20 5 . 7 51 38 Largest 3 | 2 . . . 2 2 . 3 1 2 1 2 2 . 2 2 . 3 3 3 Hottest 360 | 40 . . . 40 100 . 165 60 113 60 113 103 . 150 122 . 243 353 360 Shots Fired 548 | 18 . . . 34 108 . 44 8 47 12 8 6 . 39 10 . 21 101 92 Gun 190 | 18 . . . 34 102 . 36 . . . . . . . . . . . . Cannon 336 | . . . . . 2 . 8 8 45 3 8 4 . 39 10 . 21 96 92 Launcher 20 | . . . . . 2 . . . 2 9 . 2 . . . . . 5 . Special 2 | . . . . . 2 . . . . . . . . . . . . . . Kinetic 266 | 18 . . . 34 77 . 8 8 45 3 8 4 . 19 10 . 14 18 . Thermal 213 | . . . . . 8 . 8 . . . . . . 20 . . 7 78 92 Explosive 4 | . . . . . . . . . 2 . . 2 . . . . . . . Electromagnetic 65 | . . . . . 23 . 28 . . 9 . . . . . . . 5 . Robot Hit Streak 29 | 8 . . . 4 10 . 11 16 18 7 11 . . 26 8 . 16 29 10 Robot Miss Streak 5 | 2 . . . 3 5 . 3 1 2 3 1 . . 4 2 . 2 3 3 Penetration Max . | . . . . . . . . . . . . . . . . . . . . Secondary Targets 5 | . . . . 2 3 . . . . . . . . . . . . . . Max Gunslinging Chain 1 | . . . . 1 1 . . . . . . . . . . . . . . Shots Hit Robots 375 | 12 . . . 20 73 5 38 8 34 7 16 1 1 31 10 1 14 66 38 Core Hits 254 | 5 . . . 8 43 3 24 11 37 11 7 29 1 13 5 1 6 30 20 Critical Kills 8 | . . . . . 1 . . . . . . . . . 1 . . 4 2 Critical Parts Destroyed 3 | . . . . . . . . . . . . . . . 2 . . 1 . Critical Strikes 16 | . . . . . 2 . . . 2 . . . . 1 4 . . 5 2 Burn 1 | . . . . . 1 . . . . . . . . . . . . . . Meltdown 4 | . . . . . . . . . . . . . . . . . . 2 2 Destroy 8 | . . . . . 1 . . . . . . . . . 4 . . 3 . Blast 3 | . . . . . . . . . 2 . . . . 1 . . . . . Melee Attacks 57 | . . . . . . 13 8 5 . . 9 2 6 . 9 3 2 . . Impact . | . . . . . . . . . . . . . . . . . . . . Slashing 57 | . . . . . . 13 8 5 . . 9 2 6 . 9 3 2 . . Piercing . | . . . . . . . . . . . . . . . . . . . . Sneak Attacks 10 | . . . . . . 3 . . . . 4 . 1 . 1 1 . . . Combat Hostiles . | . . . . . . . . . . . . . . . . . . . . Follow-up Attacks . | . . . . . . . . . . . . . . . . . . . . Damage Inflicted 17635 | 123 . . . 212 1586 305 1076 552 2421 658 963 1384 97 1603 218 60 510 3716 2151 Guns 2294 | 123 . . . 212 1211 . 748 . . . . . . . . . . . . Cannons 10430 | . . . . . 25 . 122 552 2062 165 356 . . 1603 116 . 510 2768 2151 Explosions 3399 | . . . . . 350 . 206 . 333 493 . 1310 . . . . . 707 . Melee 1210 | . . . . . . 305 . . . . 607 39 97 . 102 60 . . . Ramming 302 | . . . . . . . . . 26 . . 35 . . . . . 241 . Kinetic 6322 | 123 . . . 212 795 . 163 552 2062 165 356 . . 1203 116 . 284 291 . Thermal 5954 | . . . . . 212 . 328 . . 19 . . . 400 . . 226 2618 2151 Explosive 545 | . . . . . . . . . 333 . . 4 . . . . . 208 . Electromagnetic 3302 | . . . . . 579 . 585 . . 474 . 1306 . . . . . 358 . Impact . | . . . . . . . . . . . . . . . . . . . . Slashing 1210 | . . . . . . 305 . . . . 607 39 97 . 102 60 . . . Piercing . | . . . . . . . . . . . . . . . . . . . . Highest Corruption 4 | . . . . . . . . . . . . 4 . . . . . 4 2 Average Corruption 3 | . . . . . . . . . . . . 2 . . . . . 4 1 Corruption Purged . | . . . . . . . . . . . . . . . . . . . . Corruption Blocked . | . . . . . . . . . . . . . . . . . . . . Effects 20 | . . . . . . . . . . . . . . . . . . 20 . Message Errors 6 | . . . . . . . . . . . . . . . . . . 6 . Matter Fused 2 | . . . . . . . . . . . . . . . . . . 2 . Heat Flow Errors 2 | . . . . . . . . . . . . . . . . . . 2 . Parts Rejected 1 | . . . . . . . . . . . . . . . . . . 1 . Data Loss (minor) 5 | . . . . . . . . . . . . . . . . . . 5 . Data Loss (major) 2 | . . . . . . . . . . . . . . . . . . 2 . Weapon Failures 2 | . . . . . . . . . . . . . . . . . . 2 . Overload Shots . | . . . . . . . . . . . . . . . . . . . . Overflow Damage 556 | . . . . . . 83 . . 30 . 192 10 . 16 . . . 202 23 Projectiles 158 | . . . . . . . . . 5 . 5 . . 16 . . . 109 23 Explosions 88 | . . . . . . . . . 25 . . 10 . . . . . 53 . Melee 310 | . . . . . . 83 . . . . 187 . . . . . . 40 . Knockbacks 20 | . . . . . 3 . . 5 4 . . . . 2 . . 1 5 . Impact 2 | . . . . . . . . . 1 . . . . . . . . 1 . Kinetic 18 | . . . . . 3 . . 5 3 . . . . 2 . . 1 4 . Secondary . | . . . . . . . . . . . . . . . . . . . . Self-Inflicted Damage 245 | . . . . . 82 . . . . 1 . 85 . . . . . 77 . Shots 12 | . . . . . 4 . . . . 1 . 1 . . . . . 6 . Rammed . | . . . . . . . . . . . . . . . . . . . . Targets Rammed 13 | . . . . . . . . . 1 . . 3 . . . . . 9 . Kicked 13 | . . . . . . . . . 1 . . 3 . . . . . 9 . Crushed . | . . . . . . . . . . . . . . . . . . . . Highest Temperature 370 | . . . . . 150 . 177 30 81 18 30 123 . . 277 . 308 370 289 Average Temperature 93 | . . . . . 44 . 54 14 27 9 17 56 . . 143 . 192 107 102 Received Heat Transfer 1280 | . 6 . . 48 216 . 387 15 57 26 . 210 . . 27 . . 279 9 Effects 4 | . . . . . . . . . . . . . . . . . . 4 . Interference 3 | . . . . . . . . . . . . . . . . . . 3 . Damage (minor) 1 | . . . . . . . . . . . . . . . . . . 1 . Siege Activations . | . . . . . . . . . . . . . . . . . . . . Robots Corrupted 5 | . . . . . . . 2 . . 2 . 1 . . . . . . . Combat Hostiles 4 | . . . . . . . 2 . . 2 . . . . . . . . . Parts Fried 11 | . . . . . . . 2 . 1 1 . 6 . . . . . 1 . Impact Corruptions 3 | . . . . . . . . . . . . . . . . . . 3 . Robots Melted 4 | . . . . . . . . . . . . . . . . . . 2 2 Combat Hostiles 3 | . . . . . . . . . . . . . . . . . . 1 2 Parts Melted 22 | . . . . . 1 . . . . . . . . . . . . 9 12 Heat Transferred 5244 | . . . . . 459 . 311 . . 50 . . . 507 . . 248 2122 1547 Parts Sabotaged . | . . . . . . . . . . . . . . . . . . . . Parts Stolen . | . . . . . . . . . . . . . . . . . . . . Parts Stripped . | . . . . . . . . . . . . . . . . . . . . Power Chain Reactions 9 | . . . . . 4 . 1 . . 1 . . . . . . . 3 . Missiles Intercepted . | . . . . . . . . . . . . . . . . . . . . Alert | -11 -10 -10 -10 -9 -8 -7 -7 -6 -6 -6 -6 -6 -5 -5 -4 -3 -3 -2 -1 ------- Run | Scr Mat Min Exi Min Mat Fac DSF Fac Ext Cet Arc Hub Fac DSF Fac Res DSF Res Acc Peak Influence 864 | 15 99 38 . 120 494 191 394 290 418 422 354 864 447 429 342 32 92 394 321 Initial 415 | . 9 38 . . 46 159 133 206 142 233 168 123 415 312 224 . 24 51 48 Average 201 | 5 37 38 . 69 197 172 280 251 140 349 313 333 433 388 210 19 53 231 122 Maximum Alert Level 3 | . . . . . 2 . 1 1 2 2 1 3 2 2 1 . . 1 1 Low Security (%) 55 | 100 100 100 . 100 65 100 38 . 69 . 4 13 . . 33 100 100 43 91 Level 1 35 | . . . . . 22 . 61 100 21 52 95 70 . 64 66 . . 56 8 Level 2 8 | . . . . . 12 . . . 8 46 . . 100 35 . . . . . Level 3 . | . . . . . . . . . . . . 15 . . . . . . . Level 4 . | . . . . . . . . . . . . . . . . . . . . Level 5 . | . . . . . . . . . . . . . . . . . . . . High Security . | . . . . . . . . . . . . . . . . . . . . Max Security . | . . . . . . . . . . . . . . . . . . . . Sterilizations 1 | . . . . . . . 1 . . . . . . . . . . . . Squads Dispatched 24 | . 3 . . . 3 1 2 3 2 . . 4 . 1 . . . 4 1 Investigation 8 | . 1 . . . 1 . . 2 1 . . 3 . . . . . . . Extermination 3 | . . . . . . . . 1 . . . . . . . . . 2 . Reinforcement 13 | . 2 . . . 2 1 2 . 1 . . 1 . 1 . . . 2 1 Assault . | . . . . . . . . . . . . . . . . . . . . Garrison . | . . . . . . . . . . . . . . . . . . . . Intercept . | . . . . . . . . . . . . . . . . . . . . Searches Triggered . | . . . . . . . . . . . . . . . . . . . . Construction Impeded 1 | . . . . . . 1 . . . . . . . . . . . . . Haulers Reinforced 2 | . . . . . . . . . . . . . . . . . . 1 1 Active Scanning Responses . | . . . . . . . . . . . . . . . . . . . . Cargo Convoy Interrupts . | . . . . . . . . . . . . . . . . . . . . Stealth | -11 -10 -10 -10 -9 -8 -7 -7 -6 -6 -6 -6 -6 -5 -5 -4 -3 -3 -2 -1 --------- Run | Scr Mat Min Exi Min Mat Fac DSF Fac Ext Cet Arc Hub Fac DSF Fac Res DSF Res Acc Distress Signals 11 | . . . . . 3 . . . 2 2 . 3 . . 1 . . . . Communications Jammed 37 | . . . . . . . . . . . . . . . 1 . . 14 22 Distress Signals 34 | . . . . . . . . . . . . . . . . . . 12 22 Times Spotted 171 | . 3 . . 5 28 . 13 4 25 9 12 23 . 4 8 . 2 23 12 Peak Tracking Total 13 | . 1 . . 3 8 . 6 3 4 4 2 13 . 2 4 . 1 6 3 Tactical Retreats 10 | . . . . . 1 . 2 . 2 . . 1 . . 1 . 1 2 . Traps | -11 -10 -10 -10 -9 -8 -7 -7 -6 -6 -6 -6 -6 -5 -5 -4 -3 -3 -2 -1 ------- Run | Scr Mat Min Exi Min Mat Fac DSF Fac Ext Cet Arc Hub Fac DSF Fac Res DSF Res Acc Traps Triggered 11 | . 1 . . . 1 . . 1 2 . . . . . 4 1 1 . . Indirectly 1 | . . . . . 1 . . . . . . . . . . . . . . Trap Hack Attempts . | . . . . . . . . . . . . . . . . . . . . Triggered . | . . . . . . . . . . . . . . . . . . . . Disarmed 6 | . . . . . . . . . 6 . . . . . . . . . . Reprogrammed 4 | . . . . . . . . . . . . . . . 4 . . . . Reused . | . . . . . . . . . . . . . . . . . . . . Traps Extracted . | . . . . . . . . . . . . . . . . . . . . Installed . | . . . . . . . . . . . . . . . . . . . . Triggered . | . . . . . . . . . . . . . . . . . . . . Machines | -11 -10 -10 -10 -9 -8 -7 -7 -6 -6 -6 -6 -6 -5 -5 -4 -3 -3 -2 -1 ---------- Run | Scr Mat Min Exi Min Mat Fac DSF Fac Ext Cet Arc Hub Fac DSF Fac Res DSF Res Acc Machines Disabled 20 | . . . . . 4 . . . 1 . 1 8 . 1 . . 1 2 2 Max in Single Turn 6 | . . . . . 1 . . . . . . 6 . 1 . . 1 1 1 Garrison Access 8 | . . . . . . . . 1 . . . 1 . . 2 . . . 4 Network Hub 3 | . . . . . . . . . . . . 3 . . . . . . . Machines Sabotaged 2 | . . . . . . . . . . . . 2 . . . . . . . Overloaded Fab Kills . | . . . . . . . . . . . . . . . . . . . . Hacking | -11 -10 -10 -10 -9 -8 -7 -7 -6 -6 -6 -6 -6 -5 -5 -4 -3 -3 -2 -1 --------- Run | Scr Mat Min Exi Min Mat Fac DSF Fac Ext Cet Arc Hub Fac DSF Fac Res DSF Res Acc Machines Accessed 59 | . 1 . 1 . 4 4 . 4 13 1 . 6 2 . 5 2 . 10 6 Terminals 41 | . . . . . 4 2 . 2 13 1 . 5 2 . 3 1 . 7 1 Fabricators 5 | . . . . . . 2 . . . . . . . . . . . 2 1 Repair Stations . | . . . . . . . . . . . . . . . . . . . . Recycling Units 2 | . 1 . . . . . . . . . . . . . . 1 . . . Scanalyzers . | . . . . . . . . . . . . . . . . . . . . Garrison Access 10 | . . . . . . . . 2 . . . 1 . . 2 . . 1 4 Total Hacks 209 | . 3 . 1 . 16 8 . 8 35 3 . 21 7 . 37 2 . 51 17 Successful 112 | . 1 . 1 . 9 2 . 3 22 1 . 15 3 . 16 2 . 27 10 Failed 95 | . 2 . . . 6 6 . 5 13 2 . 6 4 . 20 . . 24 7 Catastrophic 10 | . . . . . 1 1 . 1 . 1 . . 1 . 1 . . 3 1 Database Lockouts 2 | . . . . . 1 . . . . . . . . . 1 . . . . Manual 115 | . 3 . 1 . 16 7 . 1 15 1 . 11 1 . 29 1 . 24 5 Terminals 172 | . . . . . 16 3 . 5 35 3 . 20 7 . 32 1 . 44 6 Fabricators 10 | . . . . . . 5 . . . . . . . . . . . 3 2 Repair Stations . | . . . . . . . . . . . . . . . . . . . . Recycling Units 4 | . 3 . . . . . . . . . . . . . . 1 . . . Scanalyzers . | . . . . . . . . . . . . . . . . . . . . Garrison Access 22 | . . . . . . . . 3 . . . 1 . . 5 . . 4 9 Terminal Hacks 69 | . . . 1 . 5 1 . 1 17 1 . 7 2 . 11 1 . 20 2 Robot Analysis 5 | . . . . . 1 . . . . . . . . . 2 . . 2 . Prototype ID Bank 3 | . . . . . . . . . . . . . . . 1 . . 2 . Open Door 10 | . . . . . . . . . 9 1 . . . . . . . . . Open DSF 3 | . . . . . . 1 . . . . . . 1 . . 1 . . . Level Access Points 3 | . . . . . . . . . . . . 1 . . 1 . . 1 . Branch Access Points 1 | . . . . . . . . . . . . . . . . . . 1 . Machine Index 2 | . . . . . . . . . . . . 1 . . . . . . 1 Terminal Index 4 | . . . . . 1 . . . 1 . . . . . 1 . . 1 . Fabricator Index 1 | . . . . . . . . . . . . . . . . . . 1 . Repair Station Index 1 | . . . . . . . . . . . . . . . . . . 1 . Scanalyzer Index 1 | . . . . . . . . . . . . . . . . . . 1 . Garrison Index 1 | . . . . . 1 . . . . . . . . . . . . . . Alert Level 3 | . . . . . . . . . 1 . . 1 . . 1 . . . . Unreport Threat 8 | . . . . . 1 . . . 2 . . 1 . . 2 . . 2 . Locate Traps 5 | . . . . . . . . . 2 . . . . . . . . 3 . Disarm Traps 1 | . . . . . . . . . 1 . . . . . . . . . . Reprogram Traps 1 | . . . . . . . . . . . . . . . 1 . . . . Recall Investigation 1 | . . . . . 1 . . . . . . . . . . . . . . Recall Extermination 2 | . . . . . . . . 1 . . . . . . . . . 1 . Recall Reinforcements 2 | . . . . . . . . . 1 . . 1 . . . . . . . Hauler Manifests 1 | . . . . . . . . . . . . . . . . . . 1 . Registered Components 4 | . . . . . . . . . . . . 1 . . 1 . . 1 1 Zone Layout 5 | . . . . . . . . . . . . 1 1 . 1 . . 2 . EX-Prototype ID Bank 1 | . . . 1 . . . . . . . . . . . . . . . . Fabricator Hacks 1 | . . . . . . . . . . . . . . . . . . . 1 Network Status 1 | . . . . . . . . . . . . . . . . . . . 1 Repair Station Hacks . | . . . . . . . . . . . . . . . . . . . . Recycling Unit Hacks . | . . . . . . . . . . . . . . . . . . . . Scanalyzer . | . . . . . . . . . . . . . . . . . . . . Garrison Access Hacks 8 | . . . . . . . . 1 . . . 1 . . 2 . . . 4 Seal Access 8 | . . . . . . . . 1 . . . 1 . . 2 . . . 4 Unauthorized Hacks 34 | . 1 . . . 4 1 . 1 5 . . 7 1 . 3 1 . 7 3 Terminals 29 | . . . . . 4 1 . 1 5 . . 7 1 . 3 . . 5 2 Track 5 | . . . . . 1 . . . 1 . . 2 . . 1 . . . . Assimilate 1 | . . . . . . . . . . . . . . . . . . 1 . Botnet 15 | . . . . . 2 1 . 1 3 . . 2 1 . 1 . . 3 1 Operators 6 | . . . . . 1 . . . 1 . . 1 . . 1 . . 1 1 Sabotage 2 | . . . . . . . . . . . . 2 . . . . . . . Fabricators 3 | . . . . . . . . . . . . . . . . . . 2 1 Fabnet 2 | . . . . . . . . . . . . . . . . . . 2 . Haulers 1 | . . . . . . . . . . . . . . . . . . . 1 Repair Stations . | . . . . . . . . . . . . . . . . . . . . Recycling Units 2 | . 1 . . . . . . . . . . . . . . 1 . . . Recyclers 1 | . . . . . . . . . . . . . . . . 1 . . . Tunnel 1 | . 1 . . . . . . . . . . . . . . . . . . Scanalyzers . | . . . . . . . . . . . . . . . . . . . . Garrison Access . | . . . . . . . . . . . . . . . . . . . . Data Cores Recovered 2 | . . . . . . . . . . . . 1 . . . . . 1 . Used 1 | . . . . . . . . . . . . 1 . . . . . . . Hacking Detections 35 | . 1 . . . 4 3 . 3 5 1 . 3 1 . 4 1 . 7 2 Full Trace Events 2 | . . . . . . . . 2 . . . . . . . . . . . Feedback Events . | . . . . . . . . . . . . . . . . . . . . Feedback Blocked . | . . . . . . . . . . . . . . . . . . . . Robot Schematics Acquired . | . . . . . . . . . . . . . . . . . . . . Robots Built . | . . . . . . . . . . . . . . . . . . . . Authchips . | . . . . . . . . . . . . . . . . . . . . Time . | . . . . . . . . . . . . . . . . . . . . Total Robot Build Rating . | . . . . . . . . . . . . . . . . . . . . Part Schematics Acquired . | . . . . . . . . . . . . . . . . . . . . Parts Built . | . . . . . . . . . . . . . . . . . . . . Authchips . | . . . . . . . . . . . . . . . . . . . . Time . | . . . . . . . . . . . . . . . . . . . . Total Part Build Rating . | . . . . . . . . . . . . . . . . . . . . Parts Repaired . | . . . . . . . . . . . . . . . . . . . . Time . | . . . . . . . . . . . . . . . . . . . . Parts Recycled . | . . . . . . . . . . . . . . . . . . . . Recycled Matter . | . . . . . . . . . . . . . . . . . . . . Retrieved Matter . | . . . . . . . . . . . . . . . . . . . . Retrieved Components . | . . . . . . . . . . . . . . . . . . . . Parts Scanalyzed . | . . . . . . . . . . . . . . . . . . . . Part Schematics Acquired . | . . . . . . . . . . . . . . . . . . . . Parts Damaged . | . . . . . . . . . . . . . . . . . . . . Bothacking | -11 -10 -10 -10 -9 -8 -7 -7 -6 -6 -6 -6 -6 -5 -5 -4 -3 -3 -2 -1 ------------ Run | Scr Mat Min Exi Min Mat Fac DSF Fac Ext Cet Arc Hub Fac DSF Fac Res DSF Res Acc Used RIF Installer . | . . . . . . . . . . . . . . . . . . . . Robots Hacked 1 | . . . . . . . . . . . . . . . . . . . 1 Non-combat . | . . . . . . . . . . . . . . . . . . . . Combat 1 | . . . . . . . . . . . . . . . . . . . 1 Robot Hacks Applied . | . . . . . . . . . . . . . . . . . . . . Relay Couplers Released 1 | . . . . . . . . . . . . 1 . . . . . . . Machine Destruction 1 | . . . . . . . . . . . . 1 . . . . . . . Fabnet Peak Effective % 6 | . . . . . . . . . . . . . . . . . . . 6 Autooverrided 1 | . . . . . . . . . . . . . . . . . . . 1 Robots Rewired 8 | . . . . . . . . . 8 . . . . . . . . . . Allies Hacked . | . . . . . . . . . . . . . . . . . . . . Hacks Repelled . | . . . . . . . . . . . . . . . . . . . . Allies | -11 -10 -10 -10 -9 -8 -7 -7 -6 -6 -6 -6 -6 -5 -5 -4 -3 -3 -2 -1 -------- Run | Scr Mat Min Exi Min Mat Fac DSF Fac Ext Cet Arc Hub Fac DSF Fac Res DSF Res Acc Total Allies 24 | . . . . . . . . . 17 5 . . . . . . . 1 1 Largest Group 13 | . . . . . . . . . 13 13 9 7 . . . . . 1 1 Highest-Rated Group 707 | . . . . . . . . . 466 707 707 531 . . . . . 26 64 Highest-Rated Ally 159 | . . . . . . . . . 159 159 156 96 . . . . . 26 64 Total Orders . | . . . . . . . . . . . . . . . . . . . . Ally Attacks 180 | . . . . . . . . . 75 46 15 44 . . . . . . . Total Damage 5683 | . . . . . . . . . 1653 1550 522 1958 . . . . . . . Kills 34 | . . . . . . . . . 13 9 3 9 . . . . . . . Allies Corrupted 4 | . . . . . . . . . . . . 4 . . . . . . . Allies Melted . | . . . . . . . . . . . . . . . . . . . . Intel | -11 -10 -10 -10 -9 -8 -7 -7 -6 -6 -6 -6 -6 -5 -5 -4 -3 -3 -2 -1 ------- Run | Scr Mat Min Exi Min Mat Fac DSF Fac Ext Cet Arc Hub Fac DSF Fac Res DSF Res Acc Robot Analysis Total 5 | . . . . . 1 . . . . . . . . . 2 . . 2 . Derelict Logs Recovered . | . . . . . . . . . . . . . . . . . . . . Drone Launches . | . . . . . . . . . . . . . . . . . . . . Drone Recoveries . | . . . . . . . . . . . . . . . . . . . . Exploration | -11 -10 -10 -10 -9 -8 -7 -7 -6 -6 -6 -6 -6 -5 -5 -4 -3 -3 -2 -1 ------------- Run | Scr Mat Min Exi Min Mat Fac DSF Fac Ext Cet Arc Hub Fac DSF Fac Res DSF Res Acc Turns Passed 7098 | 84 125 20 252 228 722 397 245 395 1050 248 169 194 234 197 406 112 123 1097 800 Spaces Moved 5059 | 52 132 18 236 168 444 282 107 313 773 187 106 156 157 92 296 91 69 762 618 Core 13 | 13 . . . . . . . . . . . . . . . . . . . Treads . | . . . . . . . . . . . . . . . . . . . . Legs 4108 | . . . . . 99 282 107 313 773 187 106 156 157 92 296 91 69 762 618 Wheels 938 | 39 132 18 236 168 345 . . . . . . . . . . . . . . Hover . | . . . . . . . . . . . . . . . . . . . . Flight . | . . . . . . . . . . . . . . . . . . . . Fastest Speed 50 | 50 80 105 105 105 101 110 60 70 105 105 105 70 108 108 105 108 108 77 106 Average Speed 105 | 78 86 105 105 105 105 110 111 104 105 105 105 98 108 108 108 108 109 108 106 Slowest Speed 183 | 90 105 105 105 105 110 110 183 105 105 105 105 105 108 108 112 110 110 112 108 Overloaded Moves 55 | . . . . . . . 7 8 . . . 27 . . . . . 13 . Propulsion Burnouts . | . . . . . . . . . . . . . . . . . . . . Robots Hopped . | . . . . . . . . . . . . . . . . . . . . Cave-ins Triggered . | . . . . . . . . . . . . . . . . . . . . Exploration Rate (%) 40 | 4 32 13 66 32 45 5 92 14 88 79 86 28 5 93 15 3 52 31 22 Regions Visited 19 Branch Regions 7 Pre-discovered Areas 1 | . 1 . . . . . . . . . . . . . . . . . . Known Exits Taken 6 | . . . . . . 1 . . . . . 1 1 . 1 1 . 1 . Unknown Exits Taken 10 | 1 1 1 1 1 1 . . 1 1 1 1 . . . . . . . . Scrap Searched 2 | . . 1 . 1 . . . . . . . . . . . . . . . Spaces Dug 83 | . . . . . 2 8 3 5 6 . . 16 5 . 7 2 . 9 20 Terrain Destroyed 437 | . . . . . 12 8 6 5 42 16 1 218 5 1 7 2 4 76 34 Melee 31 | . . . . . . 8 3 5 . . . 1 5 . 7 2 . . . Projectile 81 | . . . . . 2 . . . 9 2 1 2 . 1 . . 4 26 34 AOE 325 | . . . . . 10 . 3 . 33 14 . 215 . . . . . 50 . Terrain Rammed . | . . . . . . . . . . . . . . . . . . . . Walls Destroyed . | . . . . . . . . . . . . . . . . . . . . Machines Disabled . | . . . . . . . . . . . . . . . . . . . . Actions | -11 -10 -10 -10 -9 -8 -7 -7 -6 -6 -6 -6 -6 -5 -5 -4 -3 -3 -2 -1 --------- Run | Scr Mat Min Exi Min Mat Fac DSF Fac Ext Cet Arc Hub Fac DSF Fac Res DSF Res Acc Total 6215 | 75 142 19 239 189 595 345 174 368 957 227 141 182 212 150 359 98 100 940 703 Wait 205 | . 1 . . . 14 36 7 6 51 15 13 1 31 1 2 . 1 13 13 Move 5039 | 51 131 17 235 167 443 281 106 312 772 186 105 155 156 91 295 90 68 761 617 Hop . | . . . . . . . . . . . . . . . . . . . . Pick Up 127 | 7 4 2 3 . 16 7 5 8 5 4 3 2 8 9 13 2 4 17 8 Fast Attach 66 | 6 2 . . 1 10 1 2 6 2 1 . . 2 2 11 . . 16 4 Attach 53 | 1 1 . . . 8 2 4 2 1 . . 2 5 5 6 2 . 9 5 Detach 24 | . . . . . 7 1 2 2 1 . . . 2 . . . . 5 4 Swap 155 | 1 2 . 1 2 20 3 14 6 22 3 3 10 . 11 5 1 11 31 9 Drop 129 | . 1 . . 2 21 1 6 13 7 6 4 2 2 11 13 . 7 28 5 Fire 283 | 9 . . . 17 56 . 20 8 31 12 4 5 . 20 5 . 7 51 38 Melee 57 | . . . . . . 13 8 5 . . 9 2 6 . 9 3 2 . . Ram . | . . . . . . . . . . . . . . . . . . . . Kick 13 | . . . . . . . . . 1 . . 3 . . . . . 9 . Crush . | . . . . . . . . . . . . . . . . . . . . Escape Stasis 10 | . . . . . . . . . 10 . . . . . . . . . . Rewire 54 | . . . . . . . . . 54 . . . . . . . . . . Trap . | . . . . . . . . . . . . . . . . . . . . Miscellaneous . | . . . . . . . . . . . . . . . . . . . . Route ------- -11/Scrapyard -10/Materials -10/Mines -10/Exiles (discovered 2 exits: [*Min x2]) -9/Mines -8/Materials -7/Factory (discovered 2 exits: *Fac / DSF) -7/DSF -6/Factory -6/Extension (discovered 2 exits: *Fac / *Cet) -6/Cetus (discovered 2 exits: *Fac / [*Arc]) -6/Archives (discovered 3 exits: *Fac / *Hub x2) -6/Hub_04(d) (discovered 4 exits: *Fac x4) -5/Factory (discovered 2 exits: [*Upp] / DSF) -5/DSF -4/Factory (discovered 5 exits: *Res x4 / [*Upp]) -3/Research -3/DSF -2/Research (discovered 5 exits: *Acc x3 / Tes x2) -1/Access To Epsilon Eridani History --------- Turn | Location | Event 6 | -11/Scrapyard | Discovered new exit (range 14) 85 | -11/Scrapyard | Entered Materials 159 | -10/Materials | Discovered new exit (range 13) 210 | -10/Materials | Entered Mines 226 | -10/Mines | Deemed a non-threat by the Exiles lab entrance 226 | -10/Mines | Discovered new exit (range 5) 230 | -10/Mines | Entered Exiles 246 | -10/Exiles | Discovered new exit (range 15) 259 | -10/Exiles | Met 8R-AWN 274 | -10/Exiles | Met EX-HEX 328 | -10/Exiles | Build established: Mutant 340 | -10/Exiles | Met EX-BIN 352 | -10/Exiles | Aligned with FarCom system 353 | -10/Exiles | Given EX-Vault access code 377 | -10/Exiles | Opened EX-Vault 381 | -10/Exiles | Found Potential Leg 383 | -10/Exiles | Found Potential Leg 404 | -10/Exiles | Warned to stay clear of 0b10 Research branches 434 | -10/Exiles | Met EX-DEC 473 | -10/Exiles | Discovered new exit (range 10) 482 | -10/Exiles | Left Exiles lab with Potential Leg 482 | -10/Exiles | Entered Mines 702 | -9/Mines | Discovered new exit (range 8) 710 | -9/Mines | Entered Materials 710 | -8/Materials | Evolved 4 slots: Propulsion x1, Utility x3 1121 | -8/Materials | Build established: Scavenger-Skirmisher 1250 | -8/Materials | Central database locked down 1331 | -8/Materials | Destroyed 7 combat bots 1382 | -8/Materials | Discovered new exit (range 18) 1432 | -8/Materials | Entered Factory 1432 | -7/Factory | Evolved 2 slots: Utility x1, Weapon x1 1676 | -7/Factory | Discovered new exit (range 6) 1716 | -7/Factory | Build established: Assassin 1828 | -7/Factory | Identified exit to DSF 1829 | -7/Factory | Entered DSF 1859 | -7/DSF | Additional patrols routed to DSF 1992 | -7/DSF | Lost 3 parts (1n2w) 2029 | -7/DSF | Sterilization system engaged 2049 | -7/DSF | Ambient heat levels rising (+10) 2049 | -7/DSF | Discovered new exit (range 14) 2064 | -7/DSF | Ambient heat levels rising (+10) 2074 | -7/DSF | Entered Factory 2074 | -6/Factory | Evolved 2 slots: Propulsion x1, Utility x1 2425 | -6/Factory | Discovered new exit (range 18) 2469 | -6/Factory | Entered Extension 2707 | -6/Extension | Rescued a captive Derelict 2708 | -6/Extension | Rescued a captive Derelict 2763 | -6/Extension | Rescued a captive Derelict 2765 | -6/Extension | Rescued a captive Derelict 2907 | -6/Extension | Rescued A7 2969 | -6/Extension | Rescued a captive Derelict 3079 | -6/Extension | Spotted B-75 Beast 3093 | -6/Extension | Destroyed B-75 Beast 3102 | -6/Extension | Spotted B-75 Beast 3114 | -6/Extension | Destroyed B-75 Beast 3176 | -6/Extension | Build established: Hacker-Skirmisher 3183 | -6/Extension | Rescued a captive Derelict 3341 | -6/Extension | Rescued a captive Derelict 3341 | -6/Extension | Rescued a captive Derelict 3390 | -6/Extension | Rescued a captive Derelict 3434 | -6/Extension | Rescued a captive Derelict 3456 | -6/Extension | Rescued a captive Derelict 3471 | -6/Extension | Discovered new exit (range 10) 3472 | -6/Extension | Discovered new exit (range 6) 3519 | -6/Extension | Entered Cetus 3519 | -6/Cetus | Accompanied by 13 allies (A7) 3524 | -6/Cetus | Acquired a Cetus Manufacturing Module code from A7 3529 | -6/Cetus | Spotted Cetus Guard 3530 | -6/Cetus | Spotted Cetus Guard 3533 | -6/Cetus | Spotted Cetus Guard 3535 | -6/Cetus | Spotted Cetus Guard 3541 | -6/Cetus | Allies destroyed Cetus Guard 3553 | -6/Cetus | Destroyed Cetus Guard 3553 | -6/Cetus | Allies destroyed Cetus Guard 3553 | -6/Cetus | Allies destroyed Cetus Guard 3606 | -6/Cetus | Started Cetus Manufacturing Module 3613 | -6/Cetus | Discovered new exit (range 22) 3631 | -6/Cetus | Manufactured an Enhanced Grunt 3632 | -6/Cetus | Spotted Cetus Guard 3634 | -6/Cetus | Spotted Cetus Guard 3637 | -6/Cetus | Discovered new exit (range 22) 3637 | -6/Cetus | Spotted Cetus Guard 3638 | -6/Cetus | Spotted Cetus Guard 3646 | -6/Cetus | Allies destroyed Cetus Guard 3648 | -6/Cetus | Destroyed Cetus Guard 3650 | -6/Cetus | Destroyed Cetus Guard 3651 | -6/Cetus | Allies destroyed Cetus Guard 3656 | -6/Cetus | Manufactured an Enhanced Grunt 3666 | -6/Cetus | Met Revision 17 3681 | -6/Cetus | Manufactured an Enhanced Grunt 3706 | -6/Cetus | Manufactured an Enhanced Grunt 3731 | -6/Cetus | Manufactured an Enhanced Grunt 3767 | -6/Cetus | Entered Archives 3767 | -6/Archives | Accompanied by 9 allies (A7) 3804 | -6/Archives | Discovered new exit (range 22) 3821 | -6/Archives | Discovered new exit (range 18) 3836 | -6/Archives | Discovered new exit (range 18) 3936 | -6/Archives | Entered Hub_04(d) 3936 | -6/Hub_04(d) | Accompanied by 7 allies 3998 | -6/Hub_04(d) | Identified exit to Factory 4070 | -6/Hub_04(d) | Network Hub disabled 4091 | -6/Hub_04(d) | Network Hub disabled 4099 | -6/Hub_04(d) | Network Hub disabled 4099 | -6/Hub_04(d) | Spotted Lightning 4099 | -6/Hub_04(d) | Spotted Lightning 4099 | -6/Hub_04(d) | Spotted Lightning 4130 | -6/Hub_04(d) | Entered Factory 4130 | -5/Factory | Evolved 2 slots: Propulsion x1, Utility x1 4145 | -5/Factory | Identified exit to DSF 4266 | -5/Factory | Discovered new exit (range 18) 4354 | -5/Factory | Build established: Scavenger-Assassin 4364 | -5/Factory | Entered DSF 4415 | -5/DSF | Additional patrols routed to DSF 4526 | -5/DSF | Discovered new exit (range 18) 4561 | -5/DSF | Entered Factory 4561 | -4/Factory | Evolved 2 slots: Power x1, Utility x1 4832 | -4/Factory | Central database locked down 4832 | -4/Factory | Identified exit to Research 4911 | -4/Factory | Discovered new exit (range 11) 4967 | -4/Factory | Entered Research 4967 | -3/Research | Evolved 2 slots: Propulsion x1, Utility x1 5078 | -3/Research | Identified exit to DSF 5079 | -3/Research | Entered DSF 5117 | -3/DSF | Discovered new exit (range 22) 5151 | -3/DSF | Additional patrols routed to DSF 5202 | -3/DSF | Entered Research 5202 | -2/Research | Evolved 2 slots: Utility x2 5217 | -2/Research | Identified exit to Testing 5232 | -2/Research | Found Prototype Processor 5232 | -2/Research | Identified Exp. Core Analyzer 5241 | -2/Research | Found Powered Armor 5243 | -2/Research | Found Powered Armor 5400 | -2/Research | Found Prototype Launcher 5400 | -2/Research | Identified Hellfire Missile Launcher 5407 | -2/Research | Found Hellfire Missile Launcher 5431 | -2/Research | Identified exit to Access 5532 | -2/Research | Build established: Hacker-Mutant 6006 | -2/Research | Spotted B-90 Cyclops 6047 | -2/Research | Destroyed B-90 Cyclops 6065 | -2/Research | Lost 3 parts (1p1n1u) 6299 | -2/Research | Entered Access 6299 | -1/Access | Evolved 2 slots: Utility x2 6580 | -1/Access | Local machine network offline 7018 | -1/Access | Spotted B-99 Colossus 7019 | -1/Access | Spotted B-99 Colossus 7036 | -1/Access | Destroyed B-99 Colossus 7065 | -1/Access | Destroyed B-99 Colossus 7088 | -1/Access | Discovered new exit (range 9) 7099 | *** | Escaped! Last Messages --------------- 07039_ Acquired 8 matter. 07046_ P-80 Master destroyed. 07046_ R-10 Processor collects Mic. Antimatter Reactor. 07048_ P-80 Master destroyed. 07049_ R-10 Processor collects Adv. Target Analyzer. 07058_ R-10 Processor collects Imp. Antigrav System. 07060_ Penetrated by Slug. 07060_ Slug penetrates Wall. 07060_ Penetrated by Slug. 07060_ Slug penetrates Wall. 07061_ R-10 Processor collects Adv. Heat Sink. 07064_ Slug penetrates Wall. 07065_ B-99 Colossus suffers critical hit (Meltdown). 07065_ Adv. Coolant Injector melted. 07065_ Linear Accelerator melted. 07065_ Adv. Cooling System melted. 07065_ Imp. Utility Shielding melted. 07086_ Sealed Heavy Doors breached. 07088_ Main Access Shell breached. 07088_ EXIT=FOUND Map ----- +----------------------------------------------------+ | ##?############?????????????????????????????? | | ""##?## ##?????????????????????????????? | | " ""##?## ##?????????????????????????????? | | " ""##?## * ##?????????????????????????????? | | T##?## ##?????????????????????????????? | | ""##?##!! ##?????????????????????????????? | | ""##?##!! "#?????????????????????????????? | | ""##?##! "#?????????????????????????????? | | = ##?## ##?????????????????? ???? | | = ##### !%[[############################???? | | ###############+######################## ##???? | | | ! ##???? | | !=! % % A A [ ##???? | | ########+############ ""######### ##???? | | ## ########### ""########## ###???? | | ## ##???????## ""### # # ???? | | ## ##???????## T### # # ????? | | ## " ##???????## ""###"" + # ????? | | ##""" ##???????## ""###"" # # ????? | | ## """ ##???????## ""###"" + # ????? | | ## " ##???????#""""""""""""##T # # ????? | | ## ##????????????????????##"" # # ????? | | ## ! ##????????????????????##"" ? # ###### | | #######"####???????????""""""???##"" ? # ######+ | | ######## #######???????" "???## ?? # ## | | #???#####"######???????" @" "????# ?? # ## | | ###### ] ##????#??" "" "????# ??? # ## " ! | | ###### ##????# ?" "????# ??? # ##""" | | # " ##????# "" """ #?# ???? # ## """ | | # """ ##????# #?##????## ## " | | + G ##????#"""" """""#???????##w ## ? | | # # """ ##????????" "????????????## ## | | # # " ##???????"" "????????????## ###+### | | + # ##????#""" """""#???????## | | # # ##????#!]* * #???????## | | # "##########????#!%=! ]%[ #???????########### | | # ###########????#[*= [! #???????######## | | # ###????????????# ! #????????????### | | # ##?????????????# #?????????????## | | # ##?????????????# #?????????????## | | #### ##?????????????# #?????????????## | | #### ##?????????????#### ####?????????????## | | #### ##???????????????## ##???????????????## | | ??## ##??############### ##??????????###??## | | ??## ##??############### ##??????????###??##### | | #### ###### # # ????????? ##??##### | | ####+###### # # ??????? ##??????? | | # !# # # ????? ##??????? | | # # # # ??? ##??????? | | # # " # % # ? ##??????? | +----------------------------------------------------+ Best States ------------- Heat Dissipation 68 Coolant Potential 300 Energy Generation 43 Energy Capacity 590 Matter Stores 300 Matter Capacity 300 Sight Range 22 Terrain Scan Range 16 Terrain Scan Density 210 ECM Strength 1 Jamming Range 16 Cloak Strength 3 Armor Coverage 1200 Resistance: KI 25 Utility Shielding 66 Weapon Cycling 20 Evasion (%) 55 Targeting Accuracy 24 Core Analysis 6 Offensive Hacking 24 Defensive Hacking 22 Item Schematics ----------------- None Robot Schematics ------------------ None Fabricated ------------ Nothing Alien Tech Used ----------------- None Achievements -------------- None Challenges ------------ None Game ------ Seed BlastSniperNanoactuators Manual? 0 Play Time 02:12:30 Cumulative 851.1 hours Start 2022.12.27 @ 15:51:28 End 2022.12.27 @ 18:46:57 Sessions 3 Manual Loads 0 Difficulty Rogue Special Mode None Game No. 441 Rogue 314 Adventurer 125 Explorer 2 Win Type 0 Total 100 Types 82/7/6/1/1/0/0/2/1 Lore% 84 Gallery% 90 Achievement% 80 Wizard Run 0 Options --------- ASCII 0 Keyboard 1 Movement Numpad Keybinds 0 Fullscreen 1 Font 36/TerminusFine Map View 76x50 Tactical HUD 1 Map Filters NONE Filters NONE Steam 1 RUN: d1d811f7-f5c8-4dcd-a0b6-6134f8316aef